{"text_format":"3","workbook":"xlsx","n_sheets":1,"sheets":["Личен месечен бюджет"],"read":"whole","date_system":"1900"}

{"sheet":"Личен месечен бюджет","index":0,"n_rows":62,"n_cols":10,"rows_kept":62,"merged":[[0,1,0,9],[2,1,4,1],[2,2,2,3],[2,7,2,8],[3,2,3,3],[3,7,3,8],[4,2,4,3],[4,6,4,8],[5,1,7,1],[5,2,5,3],[5,7,5,8],[6,2,6,3],[6,7,6,8],[7,2,7,3],[7,6,7,8],[20,6,20,9],[21,1,21,4],[29,6,29,9],[31,1,31,4],[36,6,36,9],[38,1,38,4],[42,6,42,9],[44,1,44,4],[48,6,48,9],[52,1,52,4],[55,6,55,9]]}
[null,"Личен месечен бюджет"]
[]
[null,"ПЛАНИРАН МЕСЕЧЕН ДОХОД","Доход 1",null,{"v":2500,"d":"2,500 лв."},null,"ОБЩО ПЛАНИРАНИ РАЗХОДИ ","(планиран доход минус разходи)",null,{"$f":"SUM(C21,C31,C38,C44,C52,C62,H20,H29,H36,H42,H48,H55)","v":{"v":2060,"d":"2,060 лв."}}]
[null,null,"Допълнителен доход",null,{"v":500,"d":"500 лв."},null,"ОБЩО ДЕЙСТВИТЕЛНИ РАЗХОДИ ","(действителен доход минус разходи)",null,{"$f":"SUM(D21,D31,D38,D44,D52,D62,I20,I29,I36,I42,I48,I55)","v":{"v":2040,"d":"2,040 лв."}}]
[null,null,"Общ месечен доход",null,{"$f":"SUM(E3:E4)","v":{"v":3000,"d":"3,000 лв."}},null,"Общите разлика в разходите",null,null,{"$f":"SUM(E21,E31,E38,E44,E52,E62,J20,J29,J36,J42,J48,J55)","v":{"v":20,"d":"20 лв."}}]
[null,"ДЕЙСТВИТЕЛЕН МЕСЕЧЕН ДОХОД","Доход 1",null,{"v":2500,"d":"2,500 лв."},null,"ПЛАНИРАН БАЛАНС","(планиран доход минус разходи)",null,{"$f":"E5-J3","v":{"v":940,"d":"940 лв."}}]
[null,null,"Допълнителен доход",null,{"v":500,"d":"500 лв."},null,"ДЕЙСТВИТЕЛЕН БАЛАНС","(действителен доход минус разходи)",null,{"$f":"E8-J4","v":{"v":960,"d":"960 лв."}}]
[null,null,"Общ месечен доход",null,{"$f":"SUM(E6:E7)","v":{"v":3000,"d":"3,000 лв."}},null,"РАЗЛИКА В БАЛАНСА (действителен минус планиран)",null,null,{"$f":"J7-J6","v":{"v":20,"d":"20 лв."}}]
[]
[null,"ДОМАКИНСТВО","Планиран разход","Действителен разход","Разлика",null,"РАЗВЛЕЧЕНИЯ","Планиран разход","Действителен разход","Разлика"]
[null,"Ипотека или наем",{"v":1500,"d":"1,500 лв."},{"v":1400,"d":"1,400 лв."},{"$f":"Домакинство[[#This Row],[Планиран разход]]-Домакинство[[#This Row],[Действителен разход]]","v":{"v":100,"d":"100 лв."}},null,"Видео/DVD",{"v":0,"d":"0 лв."},{"v":50,"d":"50 лв."},{"$f":"Развлечения[[#This Row],[Планиран разход]]-Развлечения[[#This Row],[Действителен разход]]","v":{"v":-50,"d":"-50 лв."}}]
[null,"Телефон",{"v":60,"d":"60 лв."},{"v":100,"d":"100 лв."},{"$f":"Домакинство[[#This Row],[Планиран разход]]-Домакинство[[#This Row],[Действителен разход]]","v":{"v":-40,"d":"-40 лв."}},null,"Компактдискове",null,null,{"$f":"Развлечения[[#This Row],[Планиран разход]]-Развлечения[[#This Row],[Действителен разход]]","v":{"v":0,"d":"0 лв."}}]
[null,"Електричество",{"v":50,"d":"50 лв."},{"v":60,"d":"60 лв."},{"$f":"Домакинство[[#This Row],[Планиран разход]]-Домакинство[[#This Row],[Действителен разход]]","v":{"v":-10,"d":"-10 лв."}},null,"Филми",null,null,{"$f":"Развлечения[[#This Row],[Планиран разход]]-Развлечения[[#This Row],[Действителен разход]]","v":{"v":0,"d":"0 лв."}}]
[null,"Газ",{"v":200,"d":"200 лв."},{"v":180,"d":"180 лв."},{"$f":"Домакинство[[#This Row],[Планиран разход]]-Домакинство[[#This Row],[Действителен разход]]","v":{"v":20,"d":"20 лв."}},null,"Концерти",null,null,{"$f":"Развлечения[[#This Row],[Планиран разход]]-Развлечения[[#This Row],[Действителен разход]]","v":{"v":0,"d":"0 лв."}}]
[null,"ВИК",null,null,{"$f":"Домакинство[[#This Row],[Планиран разход]]-Домакинство[[#This Row],[Действителен разход]]","v":{"v":0,"d":"0 лв."}},null,"Спортни събития",null,null,{"$f":"Развлечения[[#This Row],[Планиран разход]]-Развлечения[[#This Row],[Действителен разход]]","v":{"v":0,"d":"0 лв."}}]
[null,"Кабелна телевизия",null,null,{"$f":"Домакинство[[#This Row],[Планиран разход]]-Домакинство[[#This Row],[Действителен разход]]","v":{"v":0,"d":"0 лв."}},null,"Театър",null,null,{"$f":"Развлечения[[#This Row],[Планиран разход]]-Развлечения[[#This Row],[Действителен разход]]","v":{"v":0,"d":"0 лв."}}]
[null,"Такса смет",null,null,{"$f":"Домакинство[[#This Row],[Планиран разход]]-Домакинство[[#This Row],[Действителен разход]]","v":{"v":0,"d":"0 лв."}},null,"Други",null,null,{"$f":"Развлечения[[#This Row],[Планиран разход]]-Развлечения[[#This Row],[Действителен разход]]","v":{"v":0,"d":"0 лв."}}]
[null,"Поддръжка или ремонти",null,null,{"$f":"Домакинство[[#This Row],[Планиран разход]]-Домакинство[[#This Row],[Действителен разход]]","v":{"v":0,"d":"0 лв."}},null,"Други",null,null,{"$f":"Развлечения[[#This Row],[Планиран разход]]-Развлечения[[#This Row],[Действителен разход]]","v":{"v":0,"d":"0 лв."}}]
[null,"Доставки",null,null,{"$f":"Домакинство[[#This Row],[Планиран разход]]-Домакинство[[#This Row],[Действителен разход]]","v":{"v":0,"d":"0 лв."}},null,"Други",null,null,{"$f":"Развлечения[[#This Row],[Планиран разход]]-Развлечения[[#This Row],[Действителен разход]]","v":{"v":0,"d":"0 лв."}}]
[null,"Други",null,null,{"$f":"Домакинство[[#This Row],[Планиран разход]]-Домакинство[[#This Row],[Действителен разход]]","v":{"v":0,"d":"0 лв."}},null,"Общо",{"$f":"SUBTOTAL(109,Развлечения[Планиран разход])","v":{"v":0,"d":"0 лв."}},{"$f":"SUBTOTAL(109,Развлечения[Действителен разход])","v":{"v":50,"d":"50 лв."}},{"$f":"SUBTOTAL(109,Развлечения[Разлика])","v":{"v":-50,"d":"-50 лв."}}]
[null,"Общо",{"$f":"SUBTOTAL(109,Домакинство[Планиран разход])","v":{"v":1810,"d":"1,810 лв."}},{"$f":"SUBTOTAL(109,Домакинство[Действителен разход])","v":{"v":1740,"d":"1,740 лв."}},{"$f":"SUBTOTAL(109,Домакинство[Разлика])","v":{"v":70,"d":"70 лв."}}]
[{"$nulls":6},"ЗАЕМИ","Планиран разход","Действителен разход","Разлика"]
[null,"ТРАНСПОРТ","Планиран разход","Действителен разход","Разлика",null,"Лични",null,null,{"$f":"Заеми[[#This Row],[Планиран разход]]-Заеми[[#This Row],[Действителен разход]]","v":{"v":0,"d":"0 лв."}}]
[null,"Плащане за автомобил",{"v":250,"d":"250 лв."},{"v":250,"d":"250 лв."},{"$f":"Транспорт[[#This Row],[Планиран разход]]-Транспорт[[#This Row],[Действителен разход]]","v":{"v":0,"d":"0 лв."}},null,"Студентски",null,null,{"$f":"Заеми[[#This Row],[Планиран разход]]-Заеми[[#This Row],[Действителен разход]]","v":{"v":0,"d":"0 лв."}}]
[null,"Разходи за автобус/такси",null,null,{"$f":"Транспорт[[#This Row],[Планиран разход]]-Транспорт[[#This Row],[Действителен разход]]","v":{"v":0,"d":"0 лв."}},null,"Кредитна карта",null,null,{"$f":"Заеми[[#This Row],[Планиран разход]]-Заеми[[#This Row],[Действителен разход]]","v":{"v":0,"d":"0 лв."}}]
[null,"Застраховка",null,null,{"$f":"Транспорт[[#This Row],[Планиран разход]]-Транспорт[[#This Row],[Действителен разход]]","v":{"v":0,"d":"0 лв."}},null,"Кредитна карта",null,null,{"$f":"Заеми[[#This Row],[Планиран разход]]-Заеми[[#This Row],[Действителен разход]]","v":{"v":0,"d":"0 лв."}}]
[null,"Лицензи",null,null,{"$f":"Транспорт[[#This Row],[Планиран разход]]-Транспорт[[#This Row],[Действителен разход]]","v":{"v":0,"d":"0 лв."}},null,"Кредитна карта",null,null,{"$f":"Заеми[[#This Row],[Планиран разход]]-Заеми[[#This Row],[Действителен разход]]","v":{"v":0,"d":"0 лв."}}]
[null,"Гориво",null,null,{"$f":"Транспорт[[#This Row],[Планиран разход]]-Транспорт[[#This Row],[Действителен разход]]","v":{"v":0,"d":"0 лв."}},null,"Други",null,null,{"$f":"Заеми[[#This Row],[Планиран разход]]-Заеми[[#This Row],[Действителен разход]]","v":{"v":0,"d":"0 лв."}}]
[null,"Поддръжка",null,null,{"$f":"Транспорт[[#This Row],[Планиран разход]]-Транспорт[[#This Row],[Действителен разход]]","v":{"v":0,"d":"0 лв."}},null,"Общо",{"$f":"SUBTOTAL(109,Заеми[Планиран разход])","v":{"v":0,"d":"0 лв."}},{"$f":"SUBTOTAL(109,Заеми[Действителен разход])","v":{"v":0,"d":"0 лв."}},{"$f":"SUBTOTAL(109,Заеми[Разлика])","v":{"v":0,"d":"0 лв."}}]
[null,"Други",null,null,{"$f":"Транспорт[[#This Row],[Планиран разход]]-Транспорт[[#This Row],[Действителен разход]]","v":{"v":0,"d":"0 лв."}}]
[null,"Общо",{"$f":"SUBTOTAL(109,Транспорт[Планиран разход])","v":{"v":250,"d":"250 лв."}},{"$f":"SUBTOTAL(109,Транспорт[Действителен разход])","v":{"v":250,"d":"250 лв."}},{"$f":"SUBTOTAL(109,Транспорт[Разлика])","v":{"v":0,"d":"0 лв."}},null,"ДАНЪЦИ","Планиран разход","Действителен разход","Разлика"]
[{"$nulls":6},"Държавен",null,null,{"$f":"Данъци[[#This Row],[Планиран разход]]-Данъци[[#This Row],[Действителен разход]]","v":{"v":0,"d":"0 лв."}}]
[null,"ЗАСТРАХОВКА","Планиран разход","Действителен разход","Разлика",null,"Областен",null,null,{"$f":"Данъци[[#This Row],[Планиран разход]]-Данъци[[#This Row],[Действителен разход]]","v":{"v":0,"d":"0 лв."}}]
[null,"Дом",null,null,{"$f":"Застраховка[[#This Row],[Планиран разход]]-Застраховка[[#This Row],[Действителен разход]]","v":{"v":0,"d":"0 лв."}},null,"Местен",null,null,{"$f":"Данъци[[#This Row],[Планиран разход]]-Данъци[[#This Row],[Действителен разход]]","v":{"v":0,"d":"0 лв."}}]
[null,"Здравеопазване",null,null,{"$f":"Застраховка[[#This Row],[Планиран разход]]-Застраховка[[#This Row],[Действителен разход]]","v":{"v":0,"d":"0 лв."}},null,"Други",null,null,{"$f":"Данъци[[#This Row],[Планиран разход]]-Данъци[[#This Row],[Действителен разход]]","v":{"v":0,"d":"0 лв."}}]
[null,"Живот",null,null,{"$f":"Застраховка[[#This Row],[Планиран разход]]-Застраховка[[#This Row],[Действителен разход]]","v":{"v":0,"d":"0 лв."}},null,"Общо",{"$f":"SUBTOTAL(109,Данъци[Планиран разход])","v":{"v":0,"d":"0 лв."}},{"$f":"SUBTOTAL(109,Данъци[Действителен разход])","v":{"v":0,"d":"0 лв."}},{"$f":"SUBTOTAL(109,Данъци[Разлика])","v":{"v":0,"d":"0 лв."}}]
[null,"Други",null,null,{"$f":"Застраховка[[#This Row],[Планиран разход]]-Застраховка[[#This Row],[Действителен разход]]","v":{"v":0,"d":"0 лв."}}]
[null,"Общо",{"$f":"SUBTOTAL(109,Застраховка[Планиран разход])","v":{"v":0,"d":"0 лв."}},{"$f":"SUBTOTAL(109,Застраховка[Действителен разход])","v":{"v":0,"d":"0 лв."}},{"$f":"SUBTOTAL(109,Застраховка[Разлика])","v":{"v":0,"d":"0 лв."}},null,"СПЕСТЯВАНИЯ ИЛИ ИНВЕСТИЦИИ","Планиран разход","Действителен разход","Разлика"]
[{"$nulls":6},"Пенсионна сметка",null,null,{"$f":"СпестяванияИлиИнвестиции[[#This Row],[Планиран разход]]-СпестяванияИлиИнвестиции[[#This Row],[Действителен разход]]","v":{"v":0,"d":"0 лв."}}]
[null,"ХРАНА","Планиран разход","Действителен разход","Разлика",null,"Инвестиционна сметка",null,null,{"$f":"СпестяванияИлиИнвестиции[[#This Row],[Планиран разход]]-СпестяванияИлиИнвестиции[[#This Row],[Действителен разход]]","v":{"v":0,"d":"0 лв."}}]
[null,"Хранителни стоки",null,null,{"$f":"Храна[[#This Row],[Планиран разход]]-Храна[[#This Row],[Действителен разход]]","v":{"v":0,"d":"0 лв."}},null,"Други",null,null,{"$f":"СпестяванияИлиИнвестиции[[#This Row],[Планиран разход]]-СпестяванияИлиИнвестиции[[#This Row],[Действителен разход]]","v":{"v":0,"d":"0 лв."}}]
[null,"Заведения",null,null,{"$f":"Храна[[#This Row],[Планиран разход]]-Храна[[#This Row],[Действителен разход]]","v":{"v":0,"d":"0 лв."}},null,"Общо",{"$f":"SUBTOTAL(109,СпестяванияИлиИнвестиции[Планиран разход])","v":{"v":0,"d":"0 лв."}},{"$f":"SUBTOTAL(109,СпестяванияИлиИнвестиции[Действителен разход])","v":{"v":0,"d":"0 лв."}},{"$f":"SUBTOTAL(109,СпестяванияИлиИнвестиции[Разлика])","v":{"v":0,"d":"0 лв."}}]
[null,"Други",null,null,{"$f":"Храна[[#This Row],[Планиран разход]]-Храна[[#This Row],[Действителен разход]]","v":{"v":0,"d":"0 лв."}}]
[null,"Общо",{"$f":"SUBTOTAL(109,Храна[Планиран разход])","v":{"v":0,"d":"0 лв."}},{"$f":"SUBTOTAL(109,Храна[Действителен разход])","v":{"v":0,"d":"0 лв."}},{"$f":"SUBTOTAL(109,Храна[Разлика])","v":{"v":0,"d":"0 лв."}},null,"БЛАГОТВОРИТЕЛНОСТ И ДАРЕНИЯ","Планиран разход","Действителен разход","Разлика"]
[{"$nulls":6},"Благотворителност 1",null,null,{"$f":"БлаготворителностИДарения[[#This Row],[Планиран разход]]-БлаготворителностИДарения[[#This Row],[Действителен разход]]","v":{"v":0,"d":"0 лв."}}]
[null,"ДОМАШНИ ЛЮБИМЦИ","Планиран разход","Действителен разход","Разлика",null,"Благотворителност 2",null,null,{"$f":"БлаготворителностИДарения[[#This Row],[Планиран разход]]-БлаготворителностИДарения[[#This Row],[Действителен разход]]","v":{"v":0,"d":"0 лв."}}]
[null,"Храна",null,null,{"$f":"ДомашниЛюбимци[[#This Row],[Планиран разход]]-ДомашниЛюбимци[[#This Row],[Действителен разход]]","v":{"v":0,"d":"0 лв."}},null,"Благотворителност 3",null,null,{"$f":"БлаготворителностИДарения[[#This Row],[Планиран разход]]-БлаготворителностИДарения[[#This Row],[Действителен разход]]","v":{"v":0,"d":"0 лв."}}]
[null,"Медицински",null,null,{"$f":"ДомашниЛюбимци[[#This Row],[Планиран разход]]-ДомашниЛюбимци[[#This Row],[Действителен разход]]","v":{"v":0,"d":"0 лв."}},null,"Общо",{"$f":"SUBTOTAL(109,БлаготворителностИДарения[Планиран разход])","v":{"v":0,"d":"0 лв."}},{"$f":"SUBTOTAL(109,БлаготворителностИДарения[Действителен разход])","v":{"v":0,"d":"0 лв."}},{"$f":"SUBTOTAL(109,БлаготворителностИДарения[Разлика])","v":{"v":0,"d":"0 лв."}}]
[null,"Поддържане",null,null,{"$f":"ДомашниЛюбимци[[#This Row],[Планиран разход]]-ДомашниЛюбимци[[#This Row],[Действителен разход]]","v":{"v":0,"d":"0 лв."}}]
[null,"Играчки",null,null,{"$f":"ДомашниЛюбимци[[#This Row],[Планиран разход]]-ДомашниЛюбимци[[#This Row],[Действителен разход]]","v":{"v":0,"d":"0 лв."}},null,"ЮРИДИЧЕСКИ","Планиран разход","Действителен разход","Разлика"]
[null,"Други",null,null,{"$f":"ДомашниЛюбимци[[#This Row],[Планиран разход]]-ДомашниЛюбимци[[#This Row],[Действителен разход]]","v":{"v":0,"d":"0 лв."}},null,"Адвокат",null,null,{"$f":"Юридически[[#This Row],[Планиран разход]]-Юридически[[#This Row],[Действителен разход]]","v":{"v":0,"d":"0 лв."}}]
[null,"Общо",{"$f":"SUBTOTAL(109,ДомашниЛюбимци[Планиран разход])","v":{"v":0,"d":"0 лв."}},{"$f":"SUBTOTAL(109,ДомашниЛюбимци[Действителен разход])","v":{"v":0,"d":"0 лв."}},{"$f":"SUBTOTAL(109,ДомашниЛюбимци[Разлика])","v":{"v":0,"d":"0 лв."}},null,"Издръжка",null,null,{"$f":"Юридически[[#This Row],[Планиран разход]]-Юридически[[#This Row],[Действителен разход]]","v":{"v":0,"d":"0 лв."}}]
[{"$nulls":6},"Плащания по запор или решение",null,null,{"$f":"Юридически[[#This Row],[Планиран разход]]-Юридически[[#This Row],[Действителен разход]]","v":{"v":0,"d":"0 лв."}}]
[null,"ХИГИЕННИ МАТЕРИАЛИ","Планиран разход","Действителен разход","Разлика",null,"Други",null,null,{"$f":"Юридически[[#This Row],[Планиран разход]]-Юридически[[#This Row],[Действителен разход]]","v":{"v":0,"d":"0 лв."}}]
[null,"Медицински",null,null,{"$f":"ХигиенниМатериали[[#This Row],[Планиран разход]]-ХигиенниМатериали[[#This Row],[Действителен разход]]","v":{"v":0,"d":"0 лв."}},null,"Общо",{"$f":"SUBTOTAL(109,Юридически[Планиран разход])","v":{"v":0,"d":"0 лв."}},{"$f":"SUBTOTAL(109,Юридически[Действителен разход])","v":{"v":0,"d":"0 лв."}},{"$f":"SUBTOTAL(109,Юридически[Разлика])","v":{"v":0,"d":"0 лв."}}]
[null,"Коса/нокти",null,null,{"$f":"ХигиенниМатериали[[#This Row],[Планиран разход]]-ХигиенниМатериали[[#This Row],[Действителен разход]]","v":{"v":0,"d":"0 лв."}}]
[null,"Облекло",null,null,{"$f":"ХигиенниМатериали[[#This Row],[Планиран разход]]-ХигиенниМатериали[[#This Row],[Действителен разход]]","v":{"v":0,"d":"0 лв."}}]
[null,"Химическо чистене",null,null,{"$f":"ХигиенниМатериали[[#This Row],[Планиран разход]]-ХигиенниМатериали[[#This Row],[Действителен разход]]","v":{"v":0,"d":"0 лв."}}]
[null,"Здравен клуб",null,null,{"$f":"ХигиенниМатериали[[#This Row],[Планиран разход]]-ХигиенниМатериали[[#This Row],[Действителен разход]]","v":{"v":0,"d":"0 лв."}}]
[null,"Организационни разходи или такси",null,null,{"$f":"ХигиенниМатериали[[#This Row],[Планиран разход]]-ХигиенниМатериали[[#This Row],[Действителен разход]]","v":{"v":0,"d":"0 лв."}}]
[null,"Други",null,null,{"$f":"ХигиенниМатериали[[#This Row],[Планиран разход]]-ХигиенниМатериали[[#This Row],[Действителен разход]]","v":{"v":0,"d":"0 лв."}}]
[null,"Общо",{"$f":"SUBTOTAL(109,ХигиенниМатериали[Планиран разход])","v":{"v":0,"d":"0 лв."}},{"$f":"SUBTOTAL(109,ХигиенниМатериали[Действителен разход])","v":{"v":0,"d":"0 лв."}},{"$f":"SUBTOTAL(109,ХигиенниМатериали[Разлика])","v":{"v":0,"d":"0 лв."}}]